fUST/lending_fUST_20241217
["ID","MTS","AMOUNT","RATE_DAILY","PERIOD"]
[345598132,1734376237727,-500.0,0.00028767,7]
[345598134,1734376237736,-500.0,0.00028767,7]
[345598136,1734376237746,-1637.44,0.00028767,5]
[345598138,1734376237755,-500.0,0.00028767,7]
[345598140,1734376237765,-736.24,0.00028767,7]
[345598142,1734376237775,-500.0,0.00028767,7]
[345598144,1734376237784,-500.0,0.00028767,7]
[345598146,1734376237794,-500.0,0.00028767,7]
[345598148,1734376237804,-3749.19,0.00028767,7]
[345598150,1734376237814,-500.0,0.00028767,2]
[345598152,1734376237823,-5817.73,0.00028767,7]
[345598154,1734376237834,-500.0,0.00028767,7]
[345598156,1734376237844,-2138.38,0.00028767,7]
[345598158,1734376237853,-1102.75,0.00028767,7]
[345598160,1734376237863,-500.0,0.00028767,7]
[345598162,1734376237872,-20623.5,0.00028767,7]
[345598164,1734376237887,-500.0,0.00028767,7]
[345598166,1734376237896,-1264.54,0.00028767,7]
[345598168,1734376237906,-500.0,0.00028767,7]
[345598170,1734376237915,-500.0,0.00028767,7]
[345598172,1734376237925,-500.0,0.00028767,7]
[345598174,1734376237935,-693.21,0.00028767,7]
[345598176,1734376237944,-1092.95,0.00028767,7]
[345598178,1734376237955,-549.01,0.00028767,7]
[345598180,1734376237964,-500.0,0.00028767,7]
[345598182,1734376237974,-500.0,0.00028767,7]
[345598184,1734376237984,-500.0,0.00028767,7]
[345598186,1734376237994,-500.0,0.00028767,7]
[345598188,1734376238004,-1364.48,0.00028767,7]
[345598190,1734376238014,-2065.47,0.00028767,7]
[345598192,1734376238023,-500.0,0.00028767,7]
[345598194,1734376238033,-758.79,0.00028767,7]
[345598196,1734376238043,-500.0,0.00028767,7]
[345598198,1734376238052,-986.31,0.00028767,7]
[345598200,1734376238061,-500.0,0.00028767,7]
[345598202,1734376238071,-1120.09,0.00028767,7]
[345598204,1734376238080,-500.0,0.00028767,7]
[345598206,1734376238089,-500.0,0.00028767,9]
[345598207,1734376238099,-975.14,0.00028767,7]
[345598208,1734376238108,-500.0,0.00028767,7]
[345598209,1734376238118,-6418.01,0.00028767,7]
[345598210,1734376238135,-658.91,0.00028767,7]
[345598211,1734376238145,-500.0,0.00028767,7]
[345598212,1734376238154,-500.0,0.00028767,7]
[345598213,1734376238164,-4307.37,0.00028767,7]
[345598214,1734376238173,-500.0,0.00028767,7]
[345598215,1734376238182,-1019.12,0.00028767,7]
[345598216,1734376238191,-1019.31,0.00028767,7]
[345598217,1734376238200,-500.0,0.00028767,7]
[345598218,1734376238213,-151.0,0.000288,20]
[345598219,1734376238223,-300.0,0.00029,2]
[345598220,1734376238232,-151.0,0.00029,16]
[345598221,1734376238241,-300.0,0.00029,14]
[345598222,1734376238250,-303.16976109,0.00029,2]
[345598223,1734376238262,-500.0,0.00029041,7]
[345598224,1734376238272,-500.0,0.00029041,7]
[345598225,1734376238281,-500.0,0.00029041,7]
[345598226,1734376238292,-500.0,0.00029041,7]
[345598227,1734376238301,-439.01522372,0.00029041,7]
[345598228,1734376238312,-500.0,0.00029041,7]
[345598229,1734376238321,-953.59,0.00029041,7]
[345598230,1734376238331,-500.0,0.00029041,7]
[345598231,1734376238340,-500.0,0.00029041,7]
[345598232,1734376238349,-600.9,0.00029041,7]
[345598233,1734376238359,-668.26,0.00029041,7]
[345598234,1734376238369,-500.0,0.00029041,7]
[345598235,1734376238386,-791.17,0.00029041,2]
[345598236,1734376238395,-500.0,0.00029041,7]
[345598237,1734376238405,-500.0,0.00029041,7]
[345598238,1734376238415,-500.0,0.00029041,7]
[345598239,1734376238424,-500.0,0.00029041,7]
[345598240,1734376238434,-500.0,0.00029041,7]
[345598242,1734376238444,-524.97,0.00029041,7]
[345598244,1734376238454,-500.0,0.00029041,7]
[345598246,1734376238463,-500.0,0.00029041,7]
[345598248,1734376238472,-500.0,0.00029041,7]
[345598250,1734376238481,-500.0,0.00029041,7]
[345598252,1734376238491,-500.0,0.00029041,7]
[345598254,1734376238500,-500.0,0.00029041,7]
[345598256,1734376238509,-246.61483344,0.00029041,7]
[345598258,1734376238519,-1637.44,0.00029041,5]
[345598260,1734376238529,-500.0,0.00029041,7]
[345598262,1734376238539,-736.24,0.00029041,7]
[345598264,1734376238548,-500.0,0.00029041,7]
[345598266,1734376238558,-500.0,0.00029041,7]
[345598268,1734376238567,-500.0,0.00029041,7]
[345598270,1734376238577,-3749.19,0.00029041,7]
[345598272,1734376238588,-500.0,0.00029041,2]
[345598275,1734376238598,-5817.73,0.00029041,7]
[345598277,1734376238608,-500.0,0.00029041,7]
[345598279,1734376238618,-2138.38,0.00029041,7]
[345598281,1734376238635,-1102.75,0.00029041,7]
[345598283,1734376238644,-500.0,0.00029041,7]
[345598285,1734376238653,-20623.5,0.00029041,7]
[345598287,1734376238662,-500.0,0.00029041,7]
[345598289,1734376238671,-1264.54,0.00029041,7]
[345598291,1734376238681,-500.0,0.00029041,7]
[345598293,1734376238690,-500.0,0.00029041,7]
[345598295,1734376238699,-500.0,0.00029041,7]
[345598297,1734376238709,-693.21,0.00029041,7]
[345598298,1734376238718,-1092.95,0.00029041,7]
[345598299,1734376238727,-549.01,0.00029041,7]
[345598300,1734376238737,-589.89852064,0.00029041,7]
[345598301,1734376238746,-500.0,0.00029041,7]
[345598302,1734376238756,-500.0,0.00029041,7]
[345598303,1734376238765,-500.0,0.00029041,7]
[345598304,1734376238774,-1364.48,0.00029041,7]
[345598305,1734376238784,-2065.47,0.00029041,7]
[345598306,1734376238793,-500.0,0.00029041,7]
[345598307,1734376238803,-758.79,0.00029041,7]
[345598308,1734376238813,-500.0,0.00029041,7]
[345598309,1734376238823,-986.31,0.00029041,7]
[345598310,1734376238832,-500.0,0.00029041,7]
[345598311,1734376238841,-1120.09,0.00029041,7]
[345598312,1734376238850,-500.0,0.00029041,7]
[345598314,1734376238860,-975.14,0.00029041,7]
[345598316,1734376238869,-500.0,0.00029041,7]
[345598318,1734376238884,-6418.01,0.00029041,7]
[345598320,1734376238894,-658.91,0.00029041,7]
[345598322,1734376238903,-500.0,0.00029041,7]
[345598324,1734376238913,-500.0,0.00029041,7]
[345598326,1734376238922,-4307.37,0.00029041,7]
[345598328,1734376238931,-500.0,0.00029041,7]
[345598330,1734376238941,-1019.12,0.00029041,7]
[345598332,1734376238950,-1019.31,0.00029041,7]
[345598334,1734376238959,-500.0,0.00029041,7]
[345598336,1734376238968,-316.55519151,0.00029092,2]
[345598338,1734376238978,-470.65075728,0.00029093,2]
[345598340,1734376238987,-152.51,0.000291,31]
[345598342,1734376238996,-152.51,0.000291,31]
[345598344,1734376239006,-151.86,0.0002912,3]
[345598346,1734376239016,-151.0,0.000292,15]
[345598348,1734376239026,-500.0,0.00029315,7]
[345598351,1734376239036,-500.0,0.00029315,7]
[345598353,1734376239046,-450.61,0.00029315,7]
[345598355,1734376239056,-644.63391531,0.00029315,7]
[345598357,1734376239065,-500.0,0.00029315,7]
[345598359,1734376239075,-953.59,0.00029315,7]
[345598361,1734376239084,-500.0,0.00029315,7]
[345598363,1734376239094,-500.0,0.00029315,7]
[345598365,1734376239103,-600.9,0.00029315,7]
[345598367,1734376239112,-668.26,0.00029315,7]
[345598369,1734376239122,-500.0,0.00029315,7]
[345598371,1734376239138,-791.17,0.00029315,2]
[345598373,1734376239147,-500.0,0.00029315,7]
[345598375,1734376239156,-500.0,0.00029315,7]
[345598377,1734376239166,-500.0,0.00029315,7]
[345598379,1734376239175,-500.0,0.00029315,7]
[345598381,1734376239184,-500.0,0.00029315,7]
[345598383,1734376239193,-524.97,0.00029315,7]
[345598385,1734376239202,-500.0,0.00029315,7]
[345598387,1734376239212,-500.0,0.00029315,7]
[345598389,1734376239224,-500.0,0.00029315,7]
[345598391,1734376239233,-500.0,0.00029315,7]
[345598393,1734376239242,-500.0,0.00029315,7]
[345598395,1734376239251,-500.0,0.00029315,7]
[345598397,1734376239262,-1637.44,0.00029315,5]
[345598399,1734376239272,-500.0,0.00029315,7]
[345598402,1734376239282,-736.24,0.00029315,7]
[345598404,1734376239291,-500.0,0.00029315,7]
[345598406,1734376239301,-500.0,0.00029315,7]
[345598408,1734376239311,-500.0,0.00029315,7]
[345598410,1734376239321,-3749.19,0.00029315,7]
[345598416,1734376239365,-500.0,0.00029315,2]
[345598418,1734376239380,-5817.73,0.00029315,7]
[345598422,1734376239391,-321.22210028,0.00029315,7]
[345598426,1734376239400,-2138.38,0.00029315,7]
[345598428,1734376239410,-1102.75,0.00029315,7]
[345598430,1734376239419,-500.0,0.00029315,7]
[345598432,1734376239429,-20623.5,0.00029315,7]
[345598434,1734376239438,-391.85777293,0.00029315,7]
[345598436,1734376239447,-500.0,0.00029315,7]
[345598438,1734376239457,-1264.54,0.00029315,7]
[345598440,1734376239466,-500.0,0.00029315,7]
[345598442,1734376239475,-500.0,0.00029315,7]
[345598444,1734376239484,-693.21,0.00029315,7]
[345598446,1734376239493,-1092.95,0.00029315,7]
[345598449,1734376239503,-549.01,0.00029315,7]
[345598451,1734376239512,-500.0,0.00029315,7]
[345598453,1734376239521,-500.0,0.00029315,7]
[345598455,1734376239530,-500.0,0.00029315,7]
[345598457,1734376239539,-1364.48,0.00029315,7]
[345598459,1734376239548,-2065.47,0.00029315,7]
[345598461,1734376239557,-500.0,0.00029315,7]
[345598463,1734376239566,-758.79,0.00029315,7]
[345598465,1734376239575,-500.0,0.00029315,7]
[345598467,1734376239585,-986.31,0.00029315,7]
[345598469,1734376239595,-500.0,0.00029315,7]
[345598471,1734376239604,-1120.09,0.00029315,7]
[345598473,1734376239613,-334.04712314,0.00029315,7]
[345598475,1734376239626,-975.14,0.00029315,7]
[345598477,1734376239646,-500.0,0.00029315,7]
[345598478,1734376239656,-6418.01,0.00029315,7]
[345598481,1734376239665,-658.91,0.00029315,7]
[345598483,1734376239675,-500.0,0.00029315,7]
[345598485,1734376239685,-500.0,0.00029315,7]
[345598487,1734376239694,-4307.37,0.00029315,7]
[345598488,1734376239704,-235.22244166,0.00029315,7]
[345598491,1734376239714,-1019.12,0.00029315,7]
[345598493,1734376239723,-1019.31,0.00029315,7]
[345598495,1734376239733,-500.0,0.00029315,7]
[345598497,1734376239742,-224.2179758,0.00029333,4]
[345598499,1734376239752,-10298.63536998,0.00029334,2]
[345598501,1734376239761,-166.313743,0.00029349,2]
[345598503,1734376239770,-4301.13622654,0.000294,2]
[345598505,1734376239779,-4301.13622654,0.000294,2]
[345598507,1734376239789,-4301.13622654,0.000294,2]
[345598509,1734376239798,-4301.13622654,0.000294,2]
[345598510,1734376239808,-151.0,0.000294,10]
[345598512,1734376239817,-20703.81673503,0.000294,7]
[345598514,1734376239826,-2000.0,0.000294,2]
[345598516,1734376239835,-151.0,0.00029412,3]
[345598518,1734376239845,-152.51,0.000295,31]
[345598520,1734376239854,-152.51,0.000295,31]
[345598522,1734376239864,-152.0,0.000295,120]
[345598524,1734376239873,-666.0,0.0002953,2]
[345598526,1734376239883,-166.0,0.00029539,3]
[345598528,1734376239893,-167.12,0.00029539,3]
[345598530,1734376239902,-166.0,0.00029548,3]
[345598532,1734376239911,-166.0,0.00029548,3]
[345598534,1734376239920,-166.0,0.00029548,3]
[345598536,1734376239930,-166.0,0.00029548,3]
[345598538,1734376239939,-169.09,0.00029548,3]
[345598540,1734376239949,-1000.0,0.0002956,2]
[345598542,1734376239958,-400.0,0.00029565,2]
[345598544,1734376239967,-500.0,0.00029589,7]
[345598546,1734376239977,-359.34492127,0.00029589,7]
[345598548,1734376239986,-500.0,0.00029589,7]
[345598550,1734376239995,-953.59,0.00029589,7]
[345598552,1734376240004,-500.0,0.00029589,7]
[345598554,1734376240013,-500.0,0.00029589,7]
[345598556,1734376240023,-600.9,0.00029589,7]
[345598558,1734376240032,-668.26,0.00029589,7]
[345598560,1734376240041,-500.0,0.00029589,7]
[345598562,1734376240051,-791.17,0.00029589,2]
[345598564,1734376240059,-500.0,0.00029589,7]
[345598566,1734376240069,-500.0,0.00029589,7]
[345598568,1734376240078,-500.0,0.00029589,7]
[345598570,1734376240087,-500.0,0.00029589,7]
[345598572,1734376240097,-500.0,0.00029589,7]
[345598574,1734376240106,-524.97,0.00029589,7]
[345598576,1734376240116,-500.0,0.00029589,7]
[345598578,1734376240128,-500.0,0.00029589,7]
[345598580,1734376240140,-194.61587359,0.00029589,7]
[345598582,1734376240150,-500.0,0.00029589,7]
[345598584,1734376240159,-500.0,0.00029589,7]
[345598586,1734376240168,-500.0,0.00029589,7]
[345598588,1734376240178,-1637.44,0.00029589,5]
[345598590,1734376240187,-500.0,0.00029589,7]
[345598592,1734376240197,-736.24,0.00029589,7]
[345598594,1734376240206,-500.0,0.00029589,7]
[345598596,1734376240217,-500.0,0.00029589,7]
[345598598,1734376240229,-500.0,0.00029589,7]
[345598600,1734376240238,-3749.19,0.00029589,7]
[345598602,1734376240247,-559.49099564,0.00029589,2]
[345598604,1734376240258,-5817.73,0.00029589,7]
[345598606,1734376240268,-2138.38,0.00029589,7]
[345598608,1734376240277,-1102.75,0.00029589,7]
[345598610,1734376240287,-500.0,0.00029589,7]
[345598612,1734376240296,-20623.5,0.00029589,7]
[345598614,1734376240306,-500.0,0.00029589,7]
[345598616,1734376240315,-1264.54,0.00029589,7]
[345598618,1734376240324,-500.0,0.00029589,7]
[345598620,1734376240334,-500.0,0.00029589,7]
[345598622,1734376240343,-693.21,0.00029589,7]
[345598624,1734376240352,-1092.95,0.00029589,7]
[345598626,1734376240361,-549.01,0.00029589,7]
[345598628,1734376240370,-500.0,0.00029589,7]
[345598630,1734376240386,-500.0,0.00029589,7]
[345598632,1734376240396,-500.0,0.00029589,7]
[345598634,1734376240405,-1364.48,0.00029589,7]
[345598636,1734376240415,-2065.47,0.00029589,7]
[345598638,1734376240424,-500.0,0.00029589,7]
[345598640,1734376240433,-758.79,0.00029589,7]
[345598642,1734376240443,-500.0,0.00029589,7]
[345598644,1734376240454,-986.31,0.00029589,7]
[345598646,1734376240463,-500.0,0.00029589,7]
[345598648,1734376240473,-1120.09,0.00029589,7]
[345598650,1734376240482,-975.14,0.00029589,7]
[345598652,1734376240492,-500.0,0.00029589,7]
[345598654,1734376240502,-6418.01,0.00029589,7]
[345598656,1734376240512,-658.91,0.00029589,7]
[345598658,1734376240522,-500.0,0.00029589,7]
[345598660,1734376240531,-500.0,0.00029589,7]
[345598662,1734376240542,-4307.37,0.00029589,7]
[345598665,1734376240551,-1019.12,0.00029589,7]
[345598667,1734376240561,-1019.31,0.00029589,7]
[345598669,1734376240571,-500.0,0.00029589,7]
[345598671,1734376240580,-2000.0,0.000296,2]
[345598672,1734376240590,-2000.0,0.000296,2]
[345598675,1734376240600,-470.65075728,0.000296,2]
[345598677,1734376240610,-150.1,0.00029629,2]
[345598679,1734376240620,-151.0,0.0002963,7]
[345598681,1734376240636,-151.0,0.0002963,7]
[345598683,1734376240646,-151.0,0.0002963,7]
[345598685,1734376240656,-151.0,0.0002963,7]
[345598687,1734376240666,-151.0,0.0002963,7]
[345598689,1734376240675,-151.0,0.0002963,7]
[345598691,1734376240686,-151.0,0.0002963,7]
[345598693,1734376240698,-151.0,0.0002963,7]
[345598696,1734376240711,-151.0,0.0002963,7]
[345598698,1734376240721,-151.0,0.0002963,7]
[345598700,1734376240731,-151.0,0.0002963,7]
[345598702,1734376240741,-151.0,0.0002963,7]
[345598704,1734376240751,-151.0,0.0002963,7]
[345598706,1734376240760,-222.223473,0.0002963,7]
[345598708,1734376240770,-151.0,0.0002963,7]
[345598710,1734376240781,-151.0,0.0002963,7]
[345598712,1734376240791,-151.0,0.0002963,7]
[345598714,1734376240800,-151.0,0.0002963,7]
[345598716,1734376240810,-279.304259,0.0002963,7]
[345598718,1734376240819,-151.0,0.0002963,7]
[345598720,1734376240830,-151.0,0.0002963,7]
[345598722,1734376240840,-151.0,0.0002963,7]
[345598724,1734376240849,-151.0,0.0002963,7]
[345598726,1734376240859,-151.0,0.0002963,7]
[345598728,1734376240869,-151.0,0.0002963,7]
[345598730,1734376240885,-151.0,0.0002963,7]
[345598732,1734376240895,-151.0,0.0002963,7]
[345598735,1734376240905,-151.0,0.0002963,7]
[345598737,1734376240914,-151.0,0.0002963,7]
[345598738,1734376240924,-151.0,0.0002963,7]
[345598741,1734376240933,-151.0,0.0002963,7]
[345598743,1734376240943,-157.649419,0.0002963,7]
[345598745,1734376240953,-151.0,0.0002963,7]
[345598747,1734376240962,-151.0,0.0002963,7]
[345598749,1734376240971,-151.0,0.0002963,7]
[345598751,1734376240981,-151.0,0.0002963,7]
[345598753,1734376240991,-151.0,0.0002963,7]
[345598755,1734376241000,-162.872156,0.0002963,7]
[345598757,1734376241010,-557.97911,0.0002963,7]
[345598759,1734376241019,-557.97911,0.0002963,7]
[345598761,1734376241028,-557.979111,0.0002963,7]
[345598763,1734376241038,-151.0,0.0002963,7]
[345598765,1734376241047,-151.0,0.0002963,7]
[345598766,1734376241057,-151.0,0.0002963,7]
[345598768,1734376241067,-265.536332,0.0002963,7]
[345598770,1734376241076,-151.0,0.0002963,7]
[345598772,1734376241086,-151.0,0.0002963,7]
[345598774,1734376241095,-151.0,0.0002963,7]
[345598776,1734376241106,-151.0,0.0002963,7]
[345598778,1734376241115,-151.0,0.0002963,7]
[345598780,1734376241124,-151.0,0.0002963,7]
[345598782,1734376241142,-151.0,0.0002963,7]
[345598784,1734376241152,-151.0,0.0002963,7]
[345598786,1734376241161,-151.0,0.0002963,7]
[345598788,1734376241170,-151.0,0.0002963,7]
[345598790,1734376241180,-151.0,0.0002963,7]
[345598792,1734376241189,-151.0,0.0002963,7]
[345598794,1734376241199,-151.0,0.0002963,7]
[345598796,1734376241209,-151.0,0.0002963,7]
[345598798,1734376241223,-151.0,0.0002963,7]
[345598800,1734376241232,-151.0,0.0002963,7]
[345598802,1734376241242,-151.0,0.0002963,7]
[345598804,1734376241251,-255.285963,0.0002963,7]
[345598806,1734376241262,-151.0,0.0002963,7]
[345598808,1734376241271,-151.0,0.0002963,7]
[345598810,1734376241281,-151.0,0.0002963,7]
[345598812,1734376241291,-151.0,0.0002963,7]
[345598814,1734376241302,-151.0,0.0002963,7]
[345598816,1734376241312,-151.0,0.0002963,7]
[345598818,1734376241321,-151.0,0.0002963,7]
[345598820,1734376241331,-151.0,0.0002963,7]
[345598823,1734376241340,-151.0,0.0002963,7]
[345598824,1734376241350,-151.0,0.0002963,7]
[345598827,1734376241360,-151.0,0.0002963,7]
[345598829,1734376241370,-151.0,0.0002963,7]
[345598831,1734376241384,-151.0,0.0002963,7]
[345598833,1734376241394,-151.0,0.0002963,7]
[345598835,1734376241403,-151.0,0.0002963,7]
[345598836,1734376241413,-151.0,0.0002963,7]
[345598838,1734376241423,-163.83937,0.0002963,7]
[345598841,1734376241433,-151.0,0.0002963,7]
[345598843,1734376241442,-151.0,0.0002963,7]
[345598844,1734376241451,-151.0,0.0002963,7]
[345598846,1734376241461,-151.0,0.0002963,7]
[345598848,1734376241470,-151.0,0.0002963,7]
[345598850,1734376241480,-151.0,0.0002963,7]
[345598852,1734376241490,-151.0,0.0002963,7]
[345598854,1734376241500,-151.0,0.0002963,7]
[345598856,1734376241509,-151.0,0.0002963,7]
[345598858,1734376241519,-151.0,0.0002963,7]
[345598860,1734376241528,-151.0,0.0002963,7]
[345598862,1734376241538,-151.0,0.0002963,7]
[345598864,1734376241548,-151.0,0.0002963,7]
[345598866,1734376241557,-151.0,0.0002963,7]
[345598868,1734376241567,-151.0,0.0002963,7]
[345598870,1734376241576,-151.0,0.0002963,7]
[345598872,1734376241587,-153.187368,0.0002963,7]
[345598873,1734376241596,-323.470419,0.0002963,7]
[345598874,1734376241606,-323.470419,0.0002963,7]
[345598875,1734376241616,-323.470419,0.0002963,7]
[345598876,1734376241625,-323.470419,0.0002963,7]
[345598877,1734376241641,-323.470419,0.0002963,7]
[345598878,1734376241651,-323.470419,0.0002963,7]
[345598879,1734376241661,-323.470419,0.0002963,7]
[345598880,1734376241671,-323.470419,0.0002963,7]
[345598881,1734376241680,-151.0,0.0002963,7]
[345598882,1734376241689,-323.470419,0.0002963,7]
[345598883,1734376241698,-153.35336,0.0002963,7]
[345598884,1734376241708,-323.470419,0.0002963,7]
[345598885,1734376241717,-323.470419,0.0002963,7]
[345598887,1734376241726,-323.470419,0.0002963,7]
[345598888,1734376241737,-323.470419,0.0002963,7]
[345598891,1734376241747,-323.470419,0.0002963,7]
[345598893,1734376241757,-323.470419,0.0002963,7]
[345598895,1734376241767,-323.470419,0.0002963,7]
[345598897,1734376241776,-323.470419,0.0002963,7]
[345598899,1734376241786,-323.470419,0.0002963,7]
[345598901,1734376241796,-323.470419,0.0002963,7]
[345598903,1734376241806,-323.470425,0.0002963,7]
[345598905,1734376241815,-151.0,0.0002963,7]
[345598907,1734376241825,-613.754292,0.0002963,7]
[345598909,1734376241834,-613.754292,0.0002963,7]
[345598911,1734376241843,-613.754292,0.0002963,7]
[345598913,1734376241853,-613.754292,0.0002963,7]
[345598915,1734376241863,-613.754292,0.0002963,7]
[345598917,1734376241873,-613.754292,0.0002963,7]
[345598919,1734376241888,-613.754292,0.0002963,7]
[345598921,1734376241898,-613.754292,0.0002963,7]
[345598923,1734376241907,-613.754292,0.0002963,7]
[345598925,1734376241916,-613.754292,0.0002963,7]
[345598927,1734376241926,-613.754292,0.0002963,7]
[345598929,1734376241936,-613.754292,0.0002963,7]
[345598931,1734376241945,-613.754292,0.0002963,7]
[345598933,1734376241954,-613.754292,0.0002963,7]
[345598935,1734376241964,-613.754298,0.0002963,7]
[345598937,1734376241973,-224.775,0.0002963,10]
[345598939,1734376241983,-151.0,0.0002963,15]
[345598941,1734376241992,-500.0,0.0002963,10]
[345598943,1734376242002,-316.55519151,0.0002964,2]
[345598945,1734376242012,-151.0,0.00029655,7]
[345598947,1734376242021,-151.0,0.00029655,7]
[345598949,1734376242031,-151.0,0.00029655,7]
[345598951,1734376242040,-151.0,0.00029655,7]
[345598953,1734376242050,-151.0,0.00029655,7]
[345598955,1734376242060,-151.0,0.00029655,7]
[345598957,1734376242069,-151.0,0.00029655,7]
[345598959,1734376242080,-204.550699,0.00029655,7]
[345598961,1734376242090,-1000.0,0.00029672,2]
[345598964,1734376242099,-1000.0,0.00029692,2]
[345598966,1734376242109,-143842.03917145,0.000297,2]
[345598968,1734376242118,-196.86922663,0.000297,30]
[345598970,1734376242130,-1045.46,0.000297,30]
[345598972,1734376242144,-716.89257137,0.00029717,2]
[345598974,1734376242154,-1141.156099,0.0002972,2]
[345598976,1734376242164,-513.23140379,0.00029735,25]
[345598978,1734376242174,-1247.40167786,0.00029738,2]
[345598980,1734376242183,-151.0,0.0002974,7]
[345598982,1734376242193,-151.0,0.0002974,7]
[345598984,1734376242203,-151.0,0.0002974,7]
[345598986,1734376242213,-151.0,0.0002974,7]
[345598988,1734376242225,-151.0,0.0002974,7]
[345598990,1734376242235,-151.0,0.0002974,7]
[345598992,1734376242244,-151.0,0.0002974,7]
[345598994,1734376242254,-287.443434,0.0002974,7]
[345598996,1734376242266,-151.0,0.0002974,7]
[345598999,1734376242276,-151.0,0.0002974,7]
[345599002,1734376242286,-244.309549,0.0002974,7]
[345599004,1734376242296,-151.0,0.0002974,7]
[345599006,1734376242305,-151.0,0.0002974,7]
[345599009,1734376242315,-151.0,0.0002974,7]
[345599011,1734376242325,-151.0,0.0002974,7]
[345599013,1734376242334,-252.770095,0.0002974,7]
[345599015,1734376242343,-172.834714,0.0002974,7]
[345599017,1734376242353,-172.834714,0.0002974,7]
[345599019,1734376242363,-172.834714,0.0002974,7]
[345599021,1734376242372,-172.834714,0.0002974,7]
[345599023,1734376242390,-172.834714,0.0002974,7]
[345599025,1734376242400,-172.834714,0.0002974,7]
[345599027,1734376242409,-172.834714,0.0002974,7]
[345599029,1734376242419,-172.834714,0.0002974,7]
[345599031,1734376242429,-172.834714,0.0002974,7]
[345599033,1734376242439,-172.834714,0.0002974,7]
[345599035,1734376242449,-172.834714,0.0002974,7]
[345599037,1734376242459,-172.834714,0.0002974,7]
[345599039,1734376242469,-172.834714,0.0002974,7]
[345599041,1734376242478,-172.834714,0.0002974,7]
[345599043,1734376242488,-172.834714,0.0002974,7]
[345599045,1734376242498,-172.834714,0.0002974,7]
[345599047,1734376242507,-172.834714,0.0002974,7]
[345599049,1734376242517,-172.834714,0.0002974,7]
[345599051,1734376242527,-172.834714,0.0002974,7]
[345599054,1734376242537,-172.834715,0.0002974,7]
[345599056,1734376242547,-2649.979456,0.0002974,7]
[345599058,1734376242558,-2649.979456,0.0002974,7]
[345599060,1734376242567,-2649.979456,0.0002974,7]
[345599062,1734376242577,-2649.979456,0.0002974,7]
[345599064,1734376242587,-2649.979456,0.0002974,7]
[345599066,1734376242596,-2649.979456,0.0002974,7]
[345599068,1734376242606,-2649.979456,0.0002974,7]
[345599070,1734376242616,-2649.979456,0.0002974,7]
[345599072,1734376242626,-2649.979456,0.0002974,7]
[345599074,1734376242642,-2649.979456,0.0002974,7]
[345599076,1734376242652,-2649.979456,0.0002974,7]
[345599079,1734376242663,-2649.979456,0.0002974,7]
[345599081,1734376242673,-2649.979456,0.0002974,7]
[345599083,1734376242684,-2649.979456,0.0002974,7]
[345599085,1734376242694,-2649.979456,0.0002974,7]
[345599087,1734376242704,-2649.979456,0.0002974,7]